bitfinex/quotes_ETHUSD_20220308
["timestamp","ask_amount","ask_price","bid_price","bid_amount"]
[1646732685597,0.86902628,2583.9,2583.7,0.53796305]
[1646732686675,0.86902628,2583.9,2583.4,0.55075839]
[1646732687274,0.86902628,2583.9,2583.4,0.5455935]
[1646732687474,0.86902628,2583.9,2583.4,0.01067787]
[1646732688475,0.86902628,2583.9,2583.4,0.00551345]
[1646732688877,0.86902628,2583.9,2583.4,0.01067607]
[1646732689577,0.86902628,2583.9,2583.4,0.00551345]
[1646732689777,1.63502628,2583.9,2583.4,0.00551345]
[1646732689978,1.83059379,2583.9,2583.4,0.01067607]
[1646732690797,1.83059379,2583.9,2583.4,0.00551345]
[1646732690798,3.5,2583.8,2583.4,0.00551345]
[1646732690998,4.266,2583.8,2583.4,0.00551345]
[1646732691298,4.46156751,2583.8,2583.4,0.00551345]
[1646732691703,17.33156751,2583.8,2583.4,1.345e-05]
[1646732691907,1.41387343,2583.6,2583.4,1.345e-05]
[1646732692104,0.466,2583.5,2583.4,1.345e-05]
[1646732692305,0.66156751,2583.5,2583.4,1.345e-05]
[1646732692499,0.66156751,2583.5,2583.4,0.0051779]
[1646732692500,1.65151215,2583.5,2583.4,0.0051779]
[1646732692700,5.15151215,2583.5,2583.4,0.0051779]
[1646732693101,5.75151215,2583.5,2583.4,0.0051779]
[1646732693307,5.55594464,2583.5,2583.4,1.345e-05]
[1646732695856,4.566,2583.5,2583.4,1.345e-05]
[1646732697062,4.1,2583.5,2583.4,1.345e-05]
[1646732697260,0.6,2583.5,2583.4,1.345e-05]
[1646732697461,0.3,2583.5,2583.4,1.345e-05]
[1646732697908,2.43765742,2583.6,2583.4,1.345e-05]
[1646732699602,1.4966,2583.6,2583.4,0.00517614]
[1646732700600,1.14291575,2583.5,2583.4,1.345e-05]
[1646732700799,1.4966,2583.6,2583.4,0.00517794]
[1646732701643,1.4966,2583.6,2583.4,1.345e-05]
[1646732701848,1.11324847,2583.5,2583.4,1.345e-05]
[1646732702049,1.11324847,2583.5,2583.4,0.00517809]
[1646732702649,1.30881598,2583.5,2583.4,0.00517809]
[1646732703049,1.30881598,2583.5,2583.4,1.345e-05]
[1646732703650,4.80881598,2583.5,2583.4,1.345e-05]
[1646732703850,5.10881598,2583.5,2583.4,1.345e-05]
[1646732704251,5.40881598,2583.5,2583.4,1.345e-05]
[1646732704452,17.74481598,2583.5,2583.4,1.345e-05]
[1646732705052,18.67,2583.4,2583.3,0.00516472]
[1646732705252,19.49898087,2583.4,2583.3,0.00516472]
[1646732705498,17.37,2583.3,2583.0,0.01664808]
[1646732705700,0.466,2583.2,2583.0,0.01664808]
[1646732705901,0.66156751,2583.2,2583.0,0.01664808]
[1646732706100,1.19556751,2583.1,2583.0,0.01664808]
[1646732706300,1.96156751,2583.1,2583.0,0.01664808]
[1646732706700,2.93842066,2583.1,2583.0,0.01664808]
[1646732706899,17.30842066,2583.1,2583.0,0.01664808]
[1646732707102,17.67140153,2583.1,2583.0,0.01664808]
[1646732707503,18.67140153,2583.1,2583.0,0.01664808]
[1646732708506,18.67140153,2583.1,2583.0,4.808e-05]
[1646732708707,21.17,2583.0,2582.9,0.01635953]
[1646732708908,21.99898087,2583.0,2582.9,0.01635953]
[1646732709146,5.8,2582.9,2582.5,0.00393216]
[1646732709347,3.966,2582.8,2582.5,0.00393216]
[1646732709547,1.03718211,2582.7,2582.5,0.00393216]
[1646732709747,4.83718211,2582.7,2582.5,0.00393216]
[1646732709950,3.5,2582.6,2582.5,0.00393216]
[1646732710647,4.83718211,2582.7,2582.5,0.00944418]
[1646732710846,8.33718211,2582.7,2582.5,0.00944418]
[1646732711050,4.83718211,2582.7,2582.5,0.00944418]
[1646732711247,5.13718211,2582.7,2582.5,0.00944418]
[1646732711448,8.63718211,2582.7,2582.5,0.00393216]
[1646732711647,8.63718211,2582.7,2582.5,0.00944418]
[1646732712049,3.5,2582.6,2582.5,0.00944418]
[1646732712250,15.37,2582.6,2582.5,0.00944418]
[1646732712454,11.87545582,2582.5,2581.8,0.53796305]
[1646732712653,11.87545582,2582.5,2582.4,0.02356612]
[1646732712654,15.84145582,2582.5,2582.4,0.02356612]
[1646732712916,16.14145582,2582.5,2582.4,0.02124075]
[1646732713105,16.14145582,2582.5,2581.8,0.53796305]
[1646732713106,0.0212,2582.4,2581.8,0.53796305]
[1646732713305,16.33702333,2582.5,2581.2,0.93080684]
[1646732713306,11.87,2582.2,2581.2,0.93080684]
[1646732713509,0.466,2582.3,2581.2,0.93080684]
[1646732713510,0.9692076,2582.0,2581.2,0.93080684]
[1646732713707,3.5,2581.9,2581.2,0.93080684]
[1646732714107,0.89540575,2581.8,2581.2,0.93080684]
[1646732714507,5.81711315,2581.8,2581.2,0.93080684]
[1646732714708,3.5,2581.7,2581.2,0.93080684]
[1646732714910,15.836,2581.7,2581.2,0.93080684]
[1646732715110,3.5,2581.6,2581.2,0.93080684]
[1646732715308,3.966,2581.6,2581.2,0.93080684]
[1646732715511,4.266,2581.6,2581.2,0.93080684]
[1646732716110,4.266,2581.6,2581.2,0.0106664]
[1646732716112,17.37,2581.5,2581.2,0.0106664]
[1646732716310,15.836,2581.4,2581.2,0.0106664]
[1646732716511,15.836,2581.4,2580.1,0.02468128]
[1646732716512,5.5,2581.2,2580.1,0.02468128]
[1646732716750,15.836,2581.1,2581.0,0.0213328]
[1646732716950,16.03156751,2581.1,2581.0,0.0213328]
[1646732717151,17.3913,2581.0,2580.1,0.02468128]
[1646732717349,15.836,2580.9,2580.1,0.02468128]
[1646732717552,5.5,2580.7,2580.6,0.0135152]
[1646732717754,0.466,2580.7,2580.6,0.0135152]
[1646732717955,3.966,2580.7,2580.6,0.0135152]
[1646732718156,4.266,2580.7,2580.6,0.0135152]
[1646732718356,4.266,2580.7,2580.6,1.5914722]
[1646732718357,3.5,2580.7,2580.6,1.5914722]
[1646732718766,3.5,2580.7,2580.6,0.61195226]
[1646732719755,7.08339504,2580.7,2580.6,0.61195226]
[1646732719956,9.54424874,2580.7,2580.6,0.61195226]
[1646732720406,8.4217074,2580.7,2580.6,0.22236041]
[1646732720696,8.7217074,2580.7,2580.6,0.22236041]
[1646732721296,8.7217074,2580.7,2580.1,0.02468128]
[1646732722101,0.89305023,2580.3,2580.1,0.02468128]
[1646732722301,0.9695308,2580.3,2580.1,0.02468128]
[1646732723704,0.9695308,2580.3,2580.1,0.0302022]
[1646732724546,0.9695308,2580.3,2580.1,0.02468128]
[1646732724845,0.9695308,2580.3,2580.1,0.0302022]
[1646732725045,2.4608537,2580.2,2580.1,0.0302022]
[1646732725246,3.23388547,2580.2,2580.1,0.0302022]
[1646732725745,3.23388547,2580.2,2580.1,1.07629282]
[1646732725945,3.23388547,2580.2,2580.1,2.17629282]
[1646732728504,3.23388547,2580.2,2580.1,2.56519282]
[1646732730103,0.9692882,2580.7,2580.4,1.1]
[1646732730303,0.9691375,2580.9,2580.4,1.4889]
[1646732730503,2.9087456,2581.4,2580.4,1.4889]
[1646732730706,2.9087456,2581.4,2580.5,1.4889]
[1646732731757,3.85310846,2581.4,2580.9,1.1]
[1646732732158,0.9690091,2581.3,2580.9,1.1]
[1646732733366,0.9690091,2581.3,2581.0,0.00516149]
[1646732734364,0.9690091,2581.3,2580.9,1.1]
[1646732734565,0.9690091,2581.3,2581.0,0.00517438]
[1646732735406,0.77303177,2581.2,2581.0,0.00517438]
[1646732735597,0.77303177,2581.2,2580.8,1.1]
[1646732735800,0.77303177,2581.2,2581.0,0.00517438]
[1646732736800,0.77303177,2581.2,2580.8,1.1]
[1646732736999,0.77303177,2581.2,2581.0,0.00517445]
[1646732738003,0.77303177,2581.2,2580.8,1.4889]
[1646732738205,0.77303177,2581.2,2580.8,2.06897]
[1646732738406,0.77303177,2581.2,2581.0,0.00517551]
[1646732738610,0.77303177,2581.2,2581.0,1.10517551]
[1646732739146,0.77303177,2581.2,2581.0,1.1]
[1646732739348,0.77303177,2581.2,2581.0,1.10517551]
[1646732740348,0.77303177,2581.2,2581.0,1.1]
[1646732740549,0.9690091,2581.3,2581.0,1.10517551]
[1646732740749,0.9690091,2581.3,2581.2,1.1]
[1646732741551,0.9688144,2581.5,2581.2,1.1]
[1646732741951,0.19524202,2582.1,2581.4,1.1]
[1646732742249,2.13259702,2582.1,2581.4,1.1]
[1646732742451,3.31176127,2582.1,2581.7,1.1]
[1646732742909,0.968653,2581.9,2581.4,1.1]
[1646732743103,0.968653,2581.9,2581.6,0.00517252]
[1646732743903,0.968653,2581.9,2581.4,1.1]
[1646732744302,0.968653,2581.9,2581.6,0.00517252]
[1646732744503,0.968653,2581.9,2581.7,1.1]
[1646732744804,0.968653,2581.9,2581.8,1.1]
[1646732747053,0.19524202,2582.1,2581.8,1.1]
[1646732747054,0.968695,2582.0,2581.8,1.1]
[1646732747457,3.8752195,2582.8,2582.0,1.1]
[1646732747657,3.8752195,2582.8,2581.7,1.9166583]
[1646732747658,3.8752195,2582.8,2582.3,1.1]
[1646732748057,0.968544,2582.8,2582.3,1.1]
[1646732748257,0.968544,2582.8,2582.6,1.1]
[1646732748458,0.968544,2582.8,2582.5,0.96832]
[1646732748459,1.93920696,2582.9,2582.7,1.1]
[1646732748656,1.93920696,2582.9,2582.6,1.1]
[1646732750060,0.00211906,2582.9,2582.6,3.03699]
[1646732750261,0.00211906,2582.9,2582.7,1.1]
[1646732750710,0.77303177,2582.8,2582.7,1.1]
[1646732751112,0.77303177,2582.8,2582.7,1.09912014]
[1646732751313,1.87970338,2582.8,2582.7,1.09912014]
[1646732751716,2.07527089,2582.8,2582.7,1.09912014]
[1646732753112,2.07527089,2582.8,2582.7,1.09487114]
[1646732754752,2.07527089,2582.8,2582.7,0.80507618]
[1646732756252,2.54127089,2582.8,2582.7,0.80507618]
[1646732757909,2.54127089,2582.8,2582.7,0.79879218]
[1646732761514,0.77303177,2582.8,2582.7,0.79879218]
[1646732765162,1.23903177,2582.8,2582.7,0.79879218]
[1646732766205,1.43459928,2582.8,2582.7,0.79879218]
[1646732767212,2.84847271,2582.8,2582.7,0.79879218]
[1646732767610,1.43459928,2582.8,2582.7,0.79879218]
[1646732767812,5.5,2582.7,2582.3,0.0051818]
[1646732768009,5.5,2582.7,2582.1,1.169]
[1646732768010,7.8752527,2582.6,2582.1,1.167825]
[1646732768210,4.07082021,2582.6,2582.3,0.0051818]
[1646732768410,0.77303177,2582.4,2582.3,0.0051818]
[1646732768611,1.23903177,2582.4,2582.3,0.0051818]
[1646732768811,2.47782503,2582.4,2582.3,0.0051818]
[1646732769248,2.47782503,2582.4,2582.2,1.167825]
[1646732769449,0.9690455,2582.2,2581.1,6.2712]
[1646732769649,0.9691,2582.0,2580.2,4.09350671]
[1646732769864,0.9691,2582.0,2580.9,0.96926]
[1646732769865,0.466,2581.9,2580.9,0.96926]
[1646732770051,1.41060704,2581.8,2580.9,0.96926]
[1646732770253,0.466,2581.7,2580.9,0.96926]
[1646732770449,0.466,2581.6,2580.9,0.96926]
[1646732770648,1.06100039,2581.0,2580.9,0.96926]
[1646732770848,1.06100039,2581.0,2580.9,0.98494167]
[1646732771560,1.06100039,2581.0,2580.9,0.96926]
[1646732771752,1.9385033,2581.3,2580.9,0.96926]
[1646732771951,1.1909,2581.6,2580.9,0.96926]
[1646732772905,1.0611799,2581.5,2581.0,0.88024605]
[1646732773111,1.0611799,2581.5,2581.1,0.00518042]
[1646732773310,1.0611799,2581.5,2581.1,0.97421042]
[1646732773711,0.77303177,2581.3,2581.1,0.97421042]
[1646732774112,0.77303177,2581.3,2581.1,0.96903]
[1646732774315,0.77303177,2581.3,2581.2,0.00522346]
[1646732775214,0.77303177,2581.3,2581.1,0.96903]
[1646732775415,0.77303177,2581.3,2581.1,0.97425354]
[1646732776415,0.77303177,2581.3,2581.1,0.96903]
[1646732776951,0.77303177,2581.3,2581.1,0.97425362]
[1646732777151,0.77303177,2581.3,2581.1,0.00522362]
[1646732777752,0.77303177,2581.3,2581.0,1.93828]
[1646732777956,0.86916664,2581.1,2581.0,1.93828]
[1646732778958,1.64219841,2581.1,2581.0,1.93828]
[1646732779361,1.64219841,2581.1,2580.9,0.00517843]
[1646732779560,2.61153841,2581.1,2580.9,0.00517843]
[1646732780063,3.5,2581.0,2580.8,0.4265485]
[1646732780267,4.9356299,2581.0,2580.8,0.4265485]
[1646732780512,1.4356299,2581.0,2580.9,0.00517851]
[1646732780710,4.9356299,2581.0,2580.9,0.00517851]
[1646732780910,5.13119741,2581.0,2580.9,0.00517851]
[1646732781310,5.13119741,2581.0,2580.8,0.4265485]
[1646732781510,3.5,2580.9,2580.8,0.43173182]
[1646732781710,3.966,2580.9,2580.8,0.43173182]
[1646732781913,3.966,2580.9,2580.8,0.35424005]
[1646732782511,3.966,2580.9,2580.8,0.34905673]
[1646732784162,15.836,2580.9,2580.8,0.34905673]
[1646732784355,16.60903177,2580.9,2580.8,0.34905673]
[1646732785454,16.60903177,2580.9,2580.7,7.51718433]
[1646732785455,5.5,2580.8,2580.7,7.51718433]
[1646732785654,9.78705656,2580.8,2580.7,7.51718433]
[1646732786056,9.78705656,2580.8,2580.7,7.51200134]
[1646732787056,21.65705656,2580.8,2580.7,7.51200134]
[1646732788503,22.2312501,2580.8,2580.7,1.69376044]
[1646732788903,23.2312501,2580.8,2580.7,1.69376044]
[1646732789104,23.2312501,2580.8,2580.6,0.00518349]
[1646732789105,11.87,2580.7,2580.6,0.00518349]
[1646732789304,13.30572,2580.7,2580.6,0.00518349]
[1646732789505,15.07875177,2580.7,2580.6,0.00518349]
[1646732789704,15.07875177,2580.7,2580.2,0.02073708]
[1646732789705,15.07875177,2580.7,2580.1,0.02468128]
[1646732789905,15.37,2580.6,2580.5,0.00518364]
[1646732790105,15.836,2580.6,2580.5,0.00518364]
[1646732790906,15.836,2580.6,2580.1,0.02468128]
[1646732791108,0.96974,2580.5,2580.4,0.0051838]
[1646732791408,2.43574,2580.5,2580.4,0.0051838]
[1646732792051,5.93574,2580.5,2580.1,0.02468128]
[1646732792251,7.8753645,2580.5,2580.1,0.02468128]
[1646732792451,3.65040146,2580.5,2580.3,0.00518388]
[1646732792651,1.0,2580.4,2580.3,0.00518388]
[1646732792850,4.966,2580.4,2580.3,0.00518388]
[1646732793057,1.466,2580.4,2580.3,0.00518388]
[1646732793253,1.02524451,2580.2,2580.1,0.02468128]
[1646732793454,1.99493451,2580.2,2580.1,0.02468128]
[1646732794856,2.76796628,2580.2,2580.1,0.02468128]
[1646732795057,2.76796628,2580.2,2580.1,0.99433128]
[1646732796203,2.76696152,2580.2,2580.1,0.99433128]
[1646732796702,1.74272177,2580.2,2580.1,0.99433128]
[1646732798308,0.77303177,2580.2,2580.1,0.99433128]
[1646732799561,0.77303177,2580.2,2580.1,0.02468128]
[1646732800965,4.27303177,2580.2,2580.1,0.02468128]
[1646732801562,4.73903177,2580.2,2580.1,0.02468128]
[1646732801763,1.23903177,2580.2,2580.1,0.02468128]
[1646732802763,4.73903177,2580.2,2580.1,0.02468128]
[1646732803609,1.23903177,2580.2,2580.1,0.02468128]
[1646732804108,0.77303177,2580.2,2580.1,0.02468128]
[1646732804308,0.77303177,2580.2,2580.1,3.52468128]
[1646732804507,0.77303177,2580.2,2580.1,0.41358128]
[1646732805310,0.77303177,2580.2,2580.1,0.02468128]
[1646732807155,0.77303177,2580.2,2580.1,0.01831397]
[1646732807560,0.9695077,2580.7,2580.3,0.3889]
[1646732807758,3.17002,2581.1,2580.6,3.0741679]
[1646732807759,1.2311,2581.1,2580.6,3.0741679]
[1646732807958,0.13819997,2581.4,2580.6,6.9630679]
[1646732808158,0.13819997,2581.4,2580.6,3.4630679]
[1646732808360,0.58714476,2581.5,2580.6,3.4630679]
[1646732808959,0.58714476,2581.5,2581.0,1.00698256]
[1646732809362,0.58714476,2581.5,2581.0,1.97609256]
[1646732809760,0.58714476,2581.5,2581.0,0.96911]
[1646732809960,0.58714476,2581.5,2580.9,1.94339256]
[1646732810161,1.9977518,2581.5,2580.9,1.93821]
[1646732810405,2.4637518,2581.5,2580.9,1.93821]
[1646732810606,0.96926,2581.4,2581.1,0.00518273]
[1646732810805,0.96926,2581.4,2581.1,0.00398495]
[1646732810806,1.43526,2581.4,2581.1,0.00398495]
[1646732811208,2.84586704,2581.4,2581.1,0.00398495]
[1646732811608,1.06163836,2580.9,2580.8,0.96938]
[1646732813511,1.06163836,2580.9,2580.6,1.93868]
[1646732813713,1.52763836,2580.9,2580.6,1.93868]
[1646732813916,0.9696008,2580.7,2580.3,0.02209607]
[1646732814164,1.4356008,2580.7,2580.3,0.02209607]
[1646732814353,1.63116831,2580.7,2580.3,0.02209607]
[1646732814555,14.91177535,2580.7,2580.3,0.02209607]
[1646732814954,14.91177535,2580.7,2580.1,1.00069859]
[1646732814955,1.10078097,2580.3,2580.1,1.00069859]
[1646732816355,1.10078097,2580.3,2580.1,1.00586407]
[1646732816559,0.466,2580.4,2580.1,1.00586407]
[1646732816756,0.9695241,2580.6,2580.1,1.00586407]
[1646732817356,0.9695241,2580.6,2580.1,1.00069859]
[1646732817656,0.9695241,2580.6,2580.2,0.00516526]
[1646732817904,2.08852601,2580.5,2580.2,0.00516526]
[1646732818708,2.08852601,2580.5,2580.2,0.01018927]
[1646732818912,0.96957,2580.5,2580.2,0.00502401]
[1646732819411,0.96957,2580.5,2580.2,0.8085576]
[1646732819611,0.96957,2580.5,2580.2,0.80353359]
[1646732820014,2.07344578,2580.5,2580.2,0.80857369]
[1646732821113,2.07344578,2580.5,2580.2,0.80353359]
[1646732821312,0.96957,2580.5,2580.2,0.80857369]
[1646732821522,1.1738,2580.8,2580.2,0.80857369]
[1646732821523,2.58440704,2580.8,2580.4,0.80353359]
[1646732821765,1.1738,2580.8,2580.4,0.80353359]
[1646732821961,1.60617455,2581.0,2580.4,0.80353359]
[1646732822361,1.90617455,2581.0,2580.4,0.80353359]
[1646732822560,1.90617455,2581.0,2580.6,0.80353359]
[1646732822761,1.60617455,2581.0,2580.7,0.80353359]
[1646732823163,0.19556751,2581.0,2580.7,0.80353359]
[1646732823367,1.41060704,2581.0,2580.7,0.80353359]
[1646732823570,1.41060704,2581.0,2580.7,0.80855826]
[1646732823767,1.41060704,2581.0,2580.8,0.80353359]
[1646732824371,1.41060704,2581.1,2580.8,0.80353359]
[1646732824668,1.41060704,2581.2,2580.8,0.80353359]
[1646732824868,1.41060704,2581.2,2580.9,0.80353359]
[1646732825168,1.41060704,2581.4,2580.9,0.80353359]
[1646732825611,2.4997966,2581.4,2580.9,0.80353359]
[1646732826013,2.4997966,2581.4,2581.0,0.00518839]
[1646732826412,1.08918956,2581.4,2581.0,0.00518839]
[1646732826916,1.08918956,2581.4,2581.1,0.80353359]
[1646732827314,1.08918956,2581.4,2581.1,0.80872128]
[1646732827514,3.02770026,2581.4,2581.1,0.80872128]
[1646732828114,4.4383073,2581.4,2581.1,0.80353359]
[1646732828315,1.41060704,2581.3,2581.1,0.80353359]
[1646732828515,1.41060704,2581.3,2581.1,0.80872121]
[1646732828916,4.91060704,2581.3,2581.1,0.80872121]
[1646732829177,1.41060704,2581.3,2581.1,0.80872121]
[1646732829369,1.41060704,2581.3,2581.1,0.80353359]
[1646732829574,1.41060704,2581.3,2581.1,0.80859577]
[1646732830272,3.34938744,2581.3,2581.1,0.80859577]
[1646732830472,3.34938744,2581.3,2581.1,0.80353359]
[1646732830875,3.34938744,2581.3,2581.1,0.80859036]
[1646732831474,3.81538744,2581.3,2581.1,0.80859036]
[1646732831675,3.81538744,2581.3,2581.1,0.80353359]
[1646732832079,3.81538744,2581.3,2581.1,0.80859036]
[1646732832910,3.81538744,2581.3,2581.1,0.80353359]
[1646732833311,3.81538744,2581.3,2581.1,0.80871587]
[1646732833915,0.466,2581.3,2581.1,0.80871587]
[1646732834113,0.466,2581.3,2581.1,0.80353359]
[1646732834514,0.466,2581.3,2581.1,0.80872064]
[1646732835115,0.466,2581.3,2581.1,0.8077308]
[1646732835315,0.466,2581.3,2581.1,0.80254375]
[1646732835518,0.17371846,2581.0,2580.0,1.93861]
[1646732835721,0.17371846,2581.0,2580.7,0.02075132]
[1646732835722,0.466,2580.9,2580.7,0.02075132]
[1646732835918,3.5,2580.8,2580.1,0.97129991]
[1646732836118,3.966,2580.8,2580.1,0.97129991]
[1646732836317,3.966,2580.8,2580.1,0.00179991]
[1646732836518,5.1377,2580.8,2580.1,0.00179991]
[1646732836960,0.969538,2580.7,2580.2,1.93902]
[1646732837163,1.77989301,2581.0,2580.2,1.93902]
[1646732837464,1.5843255,2581.0,2580.2,1.93902]
[1646732837861,0.17371846,2581.0,2580.2,1.93902]
[1646732838064,0.17371846,2581.0,2580.7,1.05499218]
[1646732840417,0.17371846,2581.0,2580.6,0.97455335]
[1646732840418,0.17798762,2581.0,2580.6,0.97455335]
[1646732841414,0.17371846,2581.0,2580.6,0.96935]
[1646732841711,0.17798754,2581.0,2580.6,0.97460944]
[1646732842111,0.17798754,2581.0,2580.6,1.89281556]
[1646732842515,0.17371846,2581.0,2580.6,1.88755612]
[1646732843012,0.17798754,2581.0,2580.6,1.89281556]
[1646732843814,0.17371846,2581.0,2580.6,1.88755612]
[1646732844012,0.17371846,2581.0,2580.6,1.89153642]
[1646732844666,0.17371846,2581.0,2580.6,0.9733303]
[1646732844865,0.17371846,2581.0,2580.6,0.96935]
[1646732845266,0.17799362,2581.0,2580.6,0.97452539]
[1646732845666,0.86828405,2580.8,2580.6,0.97452539]
[1646732845865,2.80725415,2580.8,2580.6,0.00517539]
[1646732846066,2.80725415,2580.8,2580.3,0.96948]
[1646732846067,2.80725415,2580.8,2580.2,1.93902]
[1646732846267,3.27325415,2580.8,2580.2,1.93902]
[1646732846469,6.77325415,2580.8,2580.6,0.00517534]
[1646732846668,3.27325415,2580.8,2580.6,0.00517534]
[1646732847270,3.27325415,2580.8,2580.3,0.96948]
[1646732847673,3.27325415,2580.8,2580.6,0.00517534]
[1646732847919,8.18386119,2580.8,2580.6,0.00517534]
[1646732848110,3.27325415,2580.8,2580.6,0.00517534]
[1646732848312,3.86390783,2580.8,2580.6,0.00517534]
[1646732848610,0.9696702,2580.6,2580.0,0.002746]
[1646732848812,0.99145723,2580.2,2580.0,0.002746]
[1646732849612,0.99145723,2580.2,2579.9,0.02762238]
[1646732849815,0.99145723,2580.2,2579.9,0.00689264]
[1646732850013,0.99145723,2580.2,2580.0,0.00518205]
[1646732851214,0.99145723,2580.2,2580.0,0.97485205]
[1646732852059,0.9696411,2580.3,2580.0,0.96967]
[1646732852259,0.9696411,2580.3,2580.1,0.94149322]
[1646732853663,0.9696411,2580.3,2580.1,0.94667474]
[1646732854565,0.9696411,2580.3,2580.1,0.94149322]
[1646732854765,0.9696411,2580.3,2580.1,0.94667474]
[1646732855611,0.9696411,2580.3,2579.9,0.01397264]
[1646732855612,3.5,2580.2,2579.9,0.01397264]
[1646732855813,5.88037704,2580.2,2579.9,0.01397264]
[1646732856011,2.38037704,2580.2,2580.1,0.00518154]
[1646732856211,2.84637704,2580.2,2580.1,0.00518154]
[1646732857117,2.84637704,2580.2,2579.3,0.01778983]
[1646732857118,11.87,2579.9,2579.3,0.01778983]
[1646732857314,0.59690476,2579.8,2579.3,0.0155734]
[1646732857517,13.88427273,2579.8,2579.3,0.0155734]
[1646732857815,5.5,2579.7,2579.3,0.0155734]
[1646732858021,5.5,2579.7,2579.2,0.019339]
[1646732858022,5.5,2579.5,2579.2,0.015239]
[1646732858219,5.5,2579.5,2579.2,0.04326932]
[1646732858220,0.466,2579.4,2579.2,0.04326932]
[1646732858415,1.43629,2579.4,2579.2,0.04326932]
[1646732858818,2.43629,2579.4,2579.2,0.04326932]
[1646732859261,1.2232106,2579.3,2579.2,0.04326932]
[1646732859460,1.6892106,2579.3,2579.2,0.04326932]
[1646732859661,0.466,2579.3,2579.2,0.04751283]
[1646732860463,0.466,2579.3,2579.2,0.04326932]
[1646732860670,1.09368537,2579.6,2579.2,0.04326932]
[1646732861271,1.5923,2579.7,2579.2,0.04326932]
[1646732861468,0.13090476,2579.8,2579.2,0.04326932]
[1646732861871,0.13090476,2579.8,2579.3,0.96986]
[1646732862069,0.13090476,2579.8,2579.3,0.97538988]
[1646732862669,0.13090476,2579.8,2579.3,2.09282983]
[1646732862918,0.13090476,2579.8,2579.3,2.11533027]
[1646732863113,0.13090476,2579.8,2579.4,0.00552971]
[1646732863814,0.13090476,2579.8,2579.4,0.03356003]
[1646732864214,0.13090476,2579.8,2579.4,0.02803032]
[1646732864417,0.13090476,2579.8,2579.5,0.00536374]
[1646732865015,0.13090476,2579.8,2579.5,0.01373054]
[1646732865413,0.13090476,2579.8,2579.5,0.0083668]
[1646732865614,2.07079476,2579.8,2579.5,0.01373046]
[1646732866662,2.07079476,2579.8,2579.5,0.0083668]
[1646732866863,2.07079476,2579.8,2579.5,0.01373046]
[1646732867665,2.07079476,2579.8,2579.5,0.0083668]
[1646732868068,2.07079476,2579.8,2579.5,0.01354295]
[1646732869069,2.07079476,2579.8,2579.5,0.0083668]
[1646732869270,2.07079476,2579.8,2579.5,0.01354295]
[1646732869472,2.53679476,2579.8,2579.5,0.01354295]
[1646732870172,2.53679476,2579.8,2579.5,0.0083668]
[1646732870430,2.73236227,2579.8,2579.5,0.01354295]
[1646732870616,1.94147227,2579.8,2579.5,0.01354295]
[1646732871421,1.94147227,2579.8,2579.5,0.0083668]
[1646732871621,0.97004,2579.6,2579.5,0.01355169]
[1646732872222,0.97004,2579.6,2579.5,0.01067735]
[1646732872522,0.97004,2579.6,2579.5,0.00549246]
[1646732873324,0.9700159,2579.7,2579.5,0.00549246]
[1646732873523,1.4360159,2579.7,2579.5,0.00549246]
[1646732874159,1.4360159,2579.7,2579.5,0.01067743]
[1646732874967,1.4360159,2579.7,2579.5,0.00549246]
[1646732875164,1.4360159,2579.7,2579.5,0.01067685]
[1646732876167,1.4360159,2579.7,2579.5,0.00549246]
[1646732876371,0.466,2579.7,2579.5,0.00549246]
[1646732876568,1.27990476,2579.8,2579.5,0.01067685]
[1646732877367,1.27990476,2579.8,2579.5,0.00549246]
[1646732877769,1.27990476,2579.8,2579.5,0.01067677]
[1646732878017,2.27990476,2579.8,2579.5,0.01642545]
[1646732878619,1.27990476,2579.8,2579.5,0.01124114]
[1646732878818,1.27990476,2579.8,2579.5,0.01642549]
[1646732879718,1.27990476,2579.8,2579.5,0.01124114]
[1646732879921,2.27990476,2579.8,2579.5,0.01124114]
[1646732880118,1.27990476,2579.8,2579.5,0.01642549]
[1646732880318,1.74590476,2579.8,2579.5,0.01642549]
[1646732880519,2.94147227,2579.8,2579.5,0.01642549]
[1646732880919,2.94147227,2579.8,2579.5,0.01124114]
[1646732881119,1.94147227,2579.8,2579.5,0.01124114]
[1646732881322,1.94147227,2579.8,2579.5,0.01642549]
[1646732881519,2.94147227,2579.8,2579.5,0.01642549]
[1646732881765,1.94147227,2579.8,2579.5,0.01642549]
[1646732881961,2.94147227,2579.8,2579.5,0.01642549]
[1646732882161,1.94147227,2579.8,2579.5,0.01124114]
[1646732882562,1.94147227,2579.8,2579.5,0.01642548]
[1646732883165,2.94147227,2579.8,2579.5,0.01642548]
[1646732883364,2.94147227,2579.8,2579.5,0.01124114]
[1646732883764,2.94147227,2579.8,2579.5,0.01642548]
[1646732883765,1.94147227,2579.8,2579.5,0.01642548]
[1646732884566,1.94147227,2579.8,2579.5,0.01124114]
[1646732884967,1.94147227,2579.8,2579.5,0.01642548]
[1646732885810,1.94147227,2579.8,2579.5,0.01124114]
[1646732886209,1.94147227,2579.8,2579.5,0.01642548]
[1646732887213,1.94147227,2579.8,2579.5,0.02160982]
[1646732887412,1.94147227,2579.8,2579.5,0.01642548]
[1646732887914,0.59690476,2579.8,2579.5,0.01642548]
[1646732888118,0.13090476,2579.8,2579.5,0.01642548]
[1646732888320,0.13090476,2579.8,2579.5,0.01124114]
[1646732888817,0.13090476,2579.8,2579.5,0.01642548]
[1646732889459,0.13090476,2579.8,2579.5,0.01124114]
[1646732889662,0.13090476,2579.8,2579.5,0.01642549]
[1646732890867,0.13090476,2579.8,2579.5,0.02153006]
[1646732891068,0.13090476,2579.8,2579.5,0.01634571]
[1646732891470,0.13090476,2579.8,2579.5,1.23188051]
[1646732891967,0.13090476,2579.8,2579.5,1.22677594]
[1646732892169,0.13090476,2579.8,2579.5,1.23188051]
[1646732892767,0.13090476,2579.8,2579.5,0.01634571]
[1646732893017,0.13090476,2579.8,2579.5,0.01124114]
[1646732893216,0.13090476,2579.8,2579.5,0.01634839]
[1646732894017,0.13090476,2579.8,2579.5,0.01500106]
[1646732894216,0.13090476,2579.8,2579.5,0.00989381]
[1646732894416,0.13090476,2579.8,2579.5,0.01508084]
[1646732895416,0.13090476,2579.8,2579.5,0.00989381]
[1646732895617,0.13090476,2579.8,2579.5,0.01508084]
[1646732896663,0.13090476,2579.8,2579.6,1.58292197]
[1646732896864,0.13090476,2579.8,2579.6,1.97182197]
[1646732897067,0.13090476,2579.8,2579.7,1.58292197]
[1646732897267,0.13090476,2579.8,2579.7,5.08292197]
[1646732897870,0.13090476,2579.8,2579.7,1.58292197]
[1646732898070,0.13090476,2579.8,2579.7,2.49018721]
[1646732898472,0.13090476,2579.8,2579.7,5.99018721]
[1646732899477,0.13090476,2579.8,2579.7,6.37908721]